Cogmind - Beta 13 @@@ ROGUE MODE // 2024.04.19 @ 20:03:43 Player: monkeman Result: Destroyed by G-34 Mercenary with Small Laser Performance ------------- Evolutions (0) 0 Regions Visited (3) 600 Robots Destroyed (40) 200 Value Destroyed (1096) 1096 Prototype IDs (4) 80 Alien Tech Used (0) 0 Bonus (0) 0 TOTAL SCORE: 1976 Bonus ------- None Cogmind --------- Core Integrity 0/250 Matter 295/300 Energy 246/250 System Corruption 0% Temperature Cool (37) Movement Rolling (110) Location -9/Recycling Parts ------- > --- POWER (1) -------- Ion Engine > --- PROPULSION (2) --- Subdweller Monowheel > --- UTILITY (2) ------ Armored Scrap Engine > --- WEAPON (2) ------- Electro Construct/G Laser Beam Construct/C > --- INVENTORY (5) ---- Large Storage Unit Signal Interpreter Hacking Suite Subdweller Shrapnel Launcher Makeshift Hammer Peak State ------------ > --- POWER ------------ Ion Engine > --- PROPULSION ------- Subdweller Monowheel > --- UTILITY ---------- Armored Scrap Engine > --- WEAPON ----------- Electro Construct/G Laser Beam Construct/C > --- INVENTORY -------- Large Storage Unit Hacking Suite Subdweller Shrapnel Launcher Makeshift Hammer [Rating: 28] Favorites ----------- Power Ion Engine Engine Ion Engine Propulsion Improved Treads Treads Improved Treads Wheel Subdweller Monowheel Utility Large Storage Unit Device Improved Heat Sink Storage Large Storage Unit Protection Light Armor Plating Weapon Heavy Assault Rifle Energy Gun Constructs Energy Cannon Subdweller Beam Cannon Ballistic Gun Heavy Assault Rifle Ballistic Cannon Light Cannon Launcher Grenade Launcher Special Weapon Mining Laser Build | -11 -10 -10 -9 ------- Run | Yrd Mat Sub Rec Slots Evolved . | . . . . Power . | . . . . Propulsion . | . . . . Utility . | . . . . Weapon . | . . . . Parts Attached 44 | 6 16 20 2 Power 4 | 1 1 2 . Engine 4 | 1 1 2 . Core . | . . . . Reactor . | . . . . Propulsion 10 | 2 4 4 . Treads 9 | 2 4 3 . Leg . | . . . . Wheel 1 | . . 1 . Hover . | . . . . Flight . | . . . . Utility 11 | 1 4 5 1 Device 4 | . 1 2 1 Storage 2 | 1 1 . . Processor . | . . . . Hackware . | . . . . Protection 5 | . 2 3 . Artifact . | . . . . Weapon 19 | 2 7 9 1 Energy Gun 2 | . . 2 . Energy Cannon 2 | . . 1 1 Ballistic Gun 9 | 2 3 4 . Ballistic Cannon 2 | . 2 . . Launcher 3 | . 1 2 . Special Weapon 1 | . 1 . . Impact Weapon . | . . . . Slashing Weapon . | . . . . Piercing Weapon . | . . . . Special Melee Weapon . | . . . . Unidentified Prototypes . | . . . . Parts Lost 12 | . 3 9 . Power 1 | . . 1 . Propulsion 5 | . 2 3 . Utility 4 | . . 4 . Weapon 2 | . 1 1 . Highest Loss Streak 3 | . 2 3 . To Critical Strikes . | . . . . Average Slot Usage (%) 93 | . 97 96 68 Engine 13 | . 14 13 14 Treads 23 | . 27 25 . Wheel 1 | . . . 14 Device 6 | . 1 8 14 Storage 12 | . 14 14 . Protection 6 | . 10 4 . Energy Gun 1 | . . . 16 Energy Cannon 2 | . . 5 6 Ballistic Gun 19 | . 21 21 2 Ballistic Cannon 1 | . 3 . . Special Weapon 1 | . 2 . . Naked Turns . | . . . . Heaviest Build 39 | 13 34 39 14 Greatest Support 46 | 40 43 46 20 Greatest Overweight (x) 1 | . 1 1 . Average Overweight (x) . | . . . . Largest Inventory Capacity 15 | 8 15 15 15 Average Capacity 13 | 6 13 15 5 Most Carried 15 | 4 15 15 13 Average Carried 11 | 2 11 14 4 Final Capacity 15 | 8 15 15 5 Final Carried 15 | 4 15 14 5 Scrap Engine Consumption 20 | . . . 20 Constructs Created 2 | . . . 2 Constructs Modified 2 | . . . 2 Class Distribution -------------------- 89% | Mutant 9% | Construct Dominant Class ---------------- Mutant | -10/Materials Mutant | -10/Subcaves Construct | -9/Recycling Resources | -11 -10 -10 -9 ----------- Run | Yrd Mat Sub Rec Matter Collected 1388 | 232 472 566 118 Remotely . | . . . . Salvage Created 1241 | . 687 463 91 Parts 76 | . 43 30 3 Haulers Intercepted 1 | . 1 . . Recyclers Shooed . | . . . . Parts Field Recycled . | . . . . Retrieved Matter . | . . . . Parts Self-Destructed 20 | . . 20 . Prevented . | . . . . Kills | -11 -10 -10 -9 ------- Run | Yrd Mat Sub Rec Combat Hostiles Destroyed 32 | . 16 16 . Guns 16 | . 10 6 . Cannons 5 | . 4 1 . AOE 11 | . 2 9 . Classes Destroyed 10 | . 6 3 1 Worker 1 | . 1 . . Hauler 1 | . 1 . . Recycler 1 | . . . 1 Operator 1 | . 1 . . Turret 1 | . . 1 . Watcher 3 | . 3 . . Swarmer 9 | . 3 6 . Grunt 13 | . 13 . . Sentry 1 | . . 1 . Subdweller 9 | . . 9 . Best Kill Streak 5 | . 4 5 1 Combat Bots Only 4 | . 3 4 . Max Kills in Single Turn 4 | . 2 4 1 Gunslinging . | . . . . Exploded 4 | . 1 4 . Melee . | . . . . Uniques/NPCs Destroyed . | . . . . Combat | -11 -10 -10 -9 -------- Run | Yrd Mat Sub Rec Hostile Shots Fired 226 | . 100 124 2 Missed 59 | . 22 37 . Damage Taken 2517 | . 914 1579 24 Core 252 | . 88 152 12 Absorbed by Shields . | . . . . Redirected to Shielding 4 | . 4 . . Core Remaining (%) 100 | 100 . . . Volleys Fired 166 | 5 96 63 2 Largest 2 | 2 2 2 2 Hottest 103 | 40 100 103 102 Shots Fired 300 | 10 170 117 3 Gun 223 | 10 117 95 1 Cannon 41 | . 32 7 2 Launcher 17 | . 2 15 . Special 19 | . 19 . . Kinetic 252 | 10 149 93 . Thermal 28 | . 19 7 2 Explosive 13 | . 2 11 . Electromagnetic 7 | . . 6 1 Robot Hit Streak 32 | 2 9 32 6 Robot Miss Streak 5 | 2 5 2 . Penetration Max . | . . . . Secondary Targets . | . . . . Shots Hit Robots 188 | 5 90 92 1 Core Hits 67 | 1 37 28 1 Critical Kills . | . . . . Critical Parts Destroyed 1 | . 1 . . Critical Strikes 1 | . 1 . . Destroy 1 | . 1 . . Melee Attacks . | . . . . Impact . | . . . . Slashing . | . . . . Piercing . | . . . . Sneak Attacks . | . . . . Combat Hostiles . | . . . . Follow-up Attacks . | . . . . Damage Inflicted 2792 | 43 1219 1501 29 Guns 1423 | 43 745 635 . Cannons 391 | . 255 107 29 Explosions 964 | . 205 759 . Melee . | . . . . Ramming 14 | . 14 . . Kinetic 2013 | 43 1000 970 . Thermal 136 | . . 107 29 Explosive 544 | . 176 368 . Electromagnetic 85 | . 29 56 . Impact . | . . . . Slashing . | . . . . Piercing . | . . . . Highest Corruption . | . . . . Average Corruption . | . . . . Corruption Purged . | . . . . Corruption Blocked . | . . . . Overload Shots . | . . . . Overflow Damage 70 | . 41 29 . Projectiles . | . . . . Explosions 70 | . 41 29 . Melee . | . . . . Knockbacks 3 | . 3 . . Impact . | . . . . Kinetic 3 | . 3 . . Secondary . | . . . . Self-Inflicted Damage 80 | . 23 57 . Shots 3 | . 1 2 . Rammed 4 | . 4 . . Targets Rammed 4 | . 4 . . Kicked . | . . . . Crushed . | . . . . Highest Temperature 210 | . 210 . 40 Average Temperature 42 | . 43 . 27 Received Heat Transfer 840 | . 468 360 12 Siege Activations . | . . . . Robots Corrupted . | . . . . Combat Hostiles . | . . . . Parts Fried . | . . . . Impact Corruptions . | . . . . Robots Melted . | . . . . Combat Hostiles . | . . . . Parts Melted 1 | . . 1 . Heat Transferred 185 | . . 148 37 Parts Sabotaged . | . . . . Parts Stolen . | . . . . Parts Stripped . | . . . . Power Chain Reactions . | . . . . Alert | -11 -10 -10 -9 ------- Run | Yrd Mat Sub Rec Peak Influence 249 | . 249 . 14 Initial . | . . . . Average 101 | . 129 . 10 Maximum Alert Level 1 | . 1 . . Low Security (%) 84 | 100 80 . 100 Level 1 15 | . 19 . . Level 2 . | . . . . Level 3 . | . . . . Level 4 . | . . . . Level 5 . | . . . . High Security . | . . . . Max Security . | . . . . Squads Dispatched 5 | . 5 . . Investigation 4 | . 4 . . Extermination . | . . . . Reinforcement 1 | . 1 . . Assault . | . . . . Garrison . | . . . . Intercept . | . . . . Searches Triggered . | . . . . Construction Impeded . | . . . . Haulers Reinforced . | . . . . Active Scanning Responses . | . . . . Cargo Convoy Interrupts . | . . . . Stealth | -11 -10 -10 -9 --------- Run | Yrd Mat Sub Rec Distress Signals 2 | . 2 . . Communications Jammed . | . . . . Distress Signals . | . . . . Times Spotted 59 | . 31 27 1 Peak Tracking Total 4 | . 4 4 1 Tactical Retreats 3 | . . 3 . Traps | -11 -10 -10 -9 ------- Run | Yrd Mat Sub Rec Traps Triggered 3 | . 3 . . Indirectly 1 | . 1 . . Trap Hack Attempts . | . . . . Triggered . | . . . . Disarmed . | . . . . Reprogrammed . | . . . . Reused . | . . . . Traps Extracted . | . . . . Installed . | . . . . Triggered . | . . . . Machines | -11 -10 -10 -9 ---------- Run | Yrd Mat Sub Rec Machines Disabled 6 | . 3 3 . Max in Single Turn 2 | . 1 2 . Machines Repaired . | . . . . Machines Dismantled . | . . . . Machines Sabotaged . | . . . . Overloaded Fab Kills . | . . . . Hacking | -11 -10 -10 -9 --------- Run | Yrd Mat Sub Rec Machines Accessed 10 | . 6 . 4 Terminals 7 | . 5 . 2 Fabricators . | . . . . Repair Stations . | . . . . Recycling Units 3 | . 1 . 2 Scanalyzers . | . . . . Garrison Access . | . . . . Total Hacks 24 | . 16 . 8 Successful 14 | . 8 . 6 Failed 9 | . 7 . 2 Catastrophic . | . . . . Database Lockouts 1 | . 1 . . Manual 14 | . 11 . 3 Terminals 19 | . 14 . 5 Fabricators . | . . . . Repair Stations . | . . . . Recycling Units 5 | . 2 . 3 Scanalyzers . | . . . . Garrison Access . | . . . . Terminal Hacks 7 | . 5 . 2 Part Schematic 1 | . 1 . . Prototype ID Bank 1 | . . . 1 Terminal Index 1 | . . . 1 Dispatch Records 1 | . 1 . . Zone Layout 3 | . 3 . . Fabricator Hacks . | . . . . Repair Station Hacks . | . . . . Recycling Unit Hacks 3 | . . . 3 Report Inventory 2 | . . . 2 Retrieve Components 1 | . . . 1 Scanalyzer . | . . . . Garrison Access Hacks . | . . . . Unauthorized Hacks 4 | . 3 . 1 Terminals 3 | . 2 . 1 Botnet 3 | . 2 . 1 Fabricators . | . . . . Repair Stations . | . . . . Recycling Units 1 | . 1 . . Tunnel 1 | . 1 . . Scanalyzers . | . . . . Garrison Access . | . . . . Data Cores Recovered . | . . . . Used . | . . . . Hacking Detections 5 | . 3 . 2 Full Trace Events . | . . . . Feedback Events . | . . . . Feedback Blocked . | . . . . Robot Schematics Acquired . | . . . . Robots Built . | . . . . Authchips . | . . . . Time . | . . . . Total Robot Build Rating . | . . . . Part Schematics Acquired 1 | . 1 . . Parts Built . | . . . . Authchips . | . . . . Time . | . . . . Total Part Build Rating . | . . . . Parts Repaired . | . . . . Time . | . . . . Parts Recycled . | . . . . Recycled Matter . | . . . . Retrieved Matter . | . . . . Retrieved Components 2 | . . . 2 Parts Scanalyzed . | . . . . Part Schematics Acquired . | . . . . Parts Damaged . | . . . . Bothacking | -11 -10 -10 -9 ------------ Run | Yrd Mat Sub Rec Used RIF Installer . | . . . . Robots Hacked . | . . . . Non-combat . | . . . . Combat . | . . . . Robot Hacks Applied . | . . . . Relay Couplers Released . | . . . . Fabnet Peak Effective % . | . . . . Robots Rewired 1 | . . . 1 Allies Hacked . | . . . . Hacks Repelled . | . . . . Allies | -11 -10 -10 -9 -------- Run | Yrd Mat Sub Rec Total Allies 1 | . . . 1 Largest Group . | . . . . Highest-Rated Group . | . . . . Highest-Rated Ally . | . . . . Total Orders . | . . . . Ally Attacks . | . . . . Total Damage . | . . . . Kills . | . . . . Allies Corrupted . | . . . . Allies Melted . | . . . . Intel | -11 -10 -10 -9 ------- Run | Yrd Mat Sub Rec Robot Analysis Total . | . . . . Derelict Logs Recovered 1 | . . 1 . Drone Launches . | . . . . Drone Recoveries . | . . . . Exploration | -11 -10 -10 -9 ------------- Run | Yrd Mat Sub Rec Turns Passed 3608 | 93 1627 1491 397 Spaces Moved 1811 | 45 776 761 229 Core 4 | 4 . . . Treads 1511 | 41 776 694 . Legs . | . . . . Wheels 296 | . . 67 229 Hover . | . . . . Flight . | . . . . Fastest Speed 50 | 50 160 120 110 Average Speed 154 | 150 161 162 110 Slowest Speed 240 | 160 240 240 110 Overloaded Moves . | . . . . Propulsion Burnouts . | . . . . Robots Hopped . | . . . . Cave-ins Triggered . | . . . . Exploration Rate (%) 44 | 6 93 39 38 Regions Visited 3 Branch Regions 2 Pre-discovered Areas 2 | . 1 1 . Known Exits Taken . | . . . . Unknown Exits Taken 3 | 1 1 1 . Scrap Searched 6 | . . 6 . Spaces Dug 13 | . 6 7 . Terrain Destroyed 95 | . 12 83 . Melee . | . . . . Projectile 6 | . 6 . . AOE 89 | . 6 83 . Terrain Rammed . | . . . . Walls Destroyed . | . . . . Machines Disabled . | . . . . Actions | -11 -10 -10 -9 --------- Run | Yrd Mat Sub Rec Total 2302 | 59 961 902 380 Wait 172 | . 34 37 101 Move 1808 | 44 775 760 229 Hop . | . . . . Pick Up 43 | 4 23 13 3 Fast Attach 12 | 6 3 2 1 Attach 12 | . 3 8 1 Detach . | . . . . Swap 20 | . 10 10 . Drop 38 | . 13 9 16 Fire 166 | 5 96 63 2 Melee . | . . . . Ram . | . . . . Kick . | . . . . Crush 4 | . 4 . . Escape Stasis . | . . . . Rewire 27 | . . . 27 Trap . | . . . . Miscellaneous . | . . . . Route ------- -11/Scrapyard -10/Materials (discovered 5 exits: [*Mat x3] / [*Min] / [*Sub]) -10/Subcaves (discovered 2 exits: [*Mat] / *Rec) -9/Recycling (discovered 1 exit: [*Fac]) History --------- Turn | Location | Event 47 | -11/Scrapyard | Discovered new exit (range 16) 94 | -11/Scrapyard | Entered Materials 316 | -10/Materials | Build established: Mutant 490 | -10/Materials | Central database locked down 546 | -10/Materials | Discovered new exit (range 13) 813 | -10/Materials | Discovered new exit (range 5) 894 | -10/Materials | Discovered new exit (range 7) 1374 | -10/Materials | Discovered new exit (range 13) 1714 | -10/Materials | Discovered new exit (range 3) 1721 | -10/Materials | Entered Subcaves 1890 | -10/Subcaves | Core integrity fell below 50% 1902 | -10/Subcaves | Lost 3 parts (1p1n1u) 1958 | -10/Subcaves | Lost 3 parts (1n1u1w) 2098 | -10/Subcaves | Discovered new exit (range 11) 2327 | -10/Subcaves | Shifting Twisted Machinery released Sub. Shrapnel Launcher 2360 | -10/Subcaves | Shifting Twisted Machinery released Sub. Monowheel 2495 | -10/Subcaves | Discovered new exit (range 19) 2687 | -10/Subcaves | Ambushed by Subdweller buried in earth 2737 | -10/Subcaves | Learned location of Mines (-8) 2747 | -10/Subcaves | Core integrity fell below 20% 2792 | -10/Subcaves | A swath of the cavern ceiling suddenly collapsed 3212 | -10/Subcaves | Entered Recycling 3219 | -9/Recycling | Found Scrap Engine 3385 | -9/Recycling | Discovered new exit (range 15) 3574 | -9/Recycling | Build established: Construct 3609 | -9/Recycling | Destroyed by G-34 Mercenary with Small Laser Last Messages --------------- 03453_ Scrap Engine modifies Kinetic SMG Construct/G: Critical +2/Meltdown, Shot Heat +32, Energy Cost -2 Renamed Laser Beam Construct/C. 03454_ Arm. Scrap Engine consumes Imp. Treads. 03484_ Connecting with Terminal... >>Prototypes Downloading prototype IDs... Enh. Autogun Imp. Assault Rifle 03495_ Attempting to rewire R-06 Scavenger. 03495_ R-06 Scavenger is unpowered. 03496_ Attempting to rewire R-06 Scavenger. 03496_ R-06 Scavenger is unpowered. 03572_ Attempting to rewire K-01 Serf. 03587_ G-34 Mercenary springs to life. 03587_ Attempting to rewire K-01 Serf. 03605_ K-01 Serf rewired. [Achievement: Back For More] Map ----- +----------------------------------------------------+ | ???????# #????????????????????????????????????? | | ???????# #????????????????????????????????????? | | ?????### #####+######?????????????????????????? | | ?????# ???????????????????????? | | ???### ???????????????????????? | | ???#"" ???????????????????????? | | ???#"Y #####+##+####????????????????????????? | | ???#"" #????????????????????????????????????? | | ???### #????????????????????????????????????? | | ???#%% #????????????????????????????????????? | | ???# % ###??????????????????????????????????? | | ???# % #???????????????????????? ???????? | | ???### !!#???????????????????????? ???????? | | ?????# !!#????????????????????#### ???????? | | ?????# ###????????????????????+ #??????? | | ?????# #????????????????????# #??????? | | ?????# #????????????????????# #??????? | | ?????# #????????????????????# #??????? | | ?????# ###????????????????????# ??????? | | ?????# #??????????############# #?????## | | ?????# #??????????# * !* % # #?????# | | ?????# #??????????# ! [ ! # #?##### | | ?????# ##########?# ][ ! + ### # | | ?????# #! ! #?# ! # T + | | ?????# # ! #?#+########### ### # | | ?????# # #?# @ g #?## ## | | ?????# # #?# k ######+#####+## | | ?????# +! ! #?# """ # ## | | ?????# # #?# """"" # ## | | ?????# # / #?# """"" # ### | | ?????# # #?# """"" # #?? | | ?????# < # #?# """ # """ """ #?? | | ?????# ##########?# # """ """ #?? | | ?????# ###??????????# # """ """ #?? | | ?????# #???????###### # #?? | | ?????# #???????#"""## # """ """ #?? | | ?????# #########"Y"## ! # """ """ #?? | | ?????# + """ """ #?? | | ?????####################"Y"#### #?? | | ????????????????????????#"""#??##############?? | | ????????????????????????#####?????????????????? | | ??????????????????????????????????????????????? | | | | | | | | | | | | | | | | | +----------------------------------------------------+ Best States ------------- Heat Dissipation 39 Energy Generation 15 Energy Capacity 250 Matter Stores 300 Matter Capacity 300 Sight Range 21 Robot Scan Range 14 Terrain Scan Density 10 Armor Coverage 150 Core Shielding 20 Evasion (%) 40 Recoil Reduction 2 Item Schematics ----------------- Huge Storage Unit | -10/Materials | Hacked Robot Schematics ------------------ None Fabricated ------------ Nothing Alien Tech Used ----------------- None Achievements -------------- Back For More Challenges ------------ None Game ------ Seed TimingSigixPropulsion Manual? 0 Play Time 00:21:57 Cumulative 38.6 hours Start 2024.04.19 @ 19:42:13 End 2024.04.19 @ 20:03:43 Sessions 1 Manual Loads 0 Difficulty Rogue Special Mode None Game No. 50 Rogue 50 Adventurer 0 Explorer 0 Win Type - Total 1 Types 1/0/0/0/0/0/0/0/0 Lore% 26 Gallery% 39 Achievement% 30 Wizard Run 0 Options --------- Layout 1 ASCII 0 Keyboard 0 Movement Mouse Keybinds 0 Fullscreen 1 Font 24/Smallcaps Map View 50x35 Zoom Use 0% Tactical HUD 1 Map Filters NONE Filters NONE Steam 1 RUN: 3d6522e0-49cc-4991-b84d-4aca5e5c6b7c